Workbook

Sheet Budget by yr2020-2024 PARIS
F1: Onondaga Tobacco Asset Securitization Corporation | K1: As Per
A2: BUDGET-OTASC | C2: 2020-2024 | K2: Debt Service
D3: Actual | E3: Budget | F3: Actual | G3: Budget | H3: Actual | I3: Budget | J3: Actual | K3: Budget | L3: Budget | M3: Budget | N3: Budget | O3: Budget | P3: Budget | Q3: Budget
D4: 2012 | E4: 2013 | F4: 2013 | G4: 2014 | H4: 2014 | I4: 2015 | J4: 2015 | K4: 2017 | L4: 2018 | M4: 2020 | N4: 2021 | O4: 2022 | P4: 2023 | Q4: 2024
A5: OPERATING REVENUES:
B6: Tobacco settlement proceeds | D6: 6,821,381 | E6: 6,555,000 | F6: 6,817,145 | G6: 7,700,000 | H6: 7,712,439 | I6: 6,750,000 | J6: 6,600,031 | K6: 6,506,000 | L6: 6,320,988 | M6: 6,100,000 | N6: 6,700,000 | O6: 6,600,000 | P6: 6,500,000 | Q6: 6,500,000
B7: Interest income | D7: 482,808 | E7: 460,000 | F7: 465,825 | G7: =+E7 -> 460,000 | H7: 463,458 | I7: =G7 -> 460,000 | J7: 451,578 | K7: 36,000 | L7: 70,000 | M7: 60,000 | N7: 60,000 | O7: 80,000 | P7: 90,000 | Q7: 90,000
C8: Total operating revenues | D8: =SUM(D6:D7) -> 7,304,189 | E8: =SUM(E6:E7) -> 7,015,000 | F8: =SUM(F6:F7) -> 7,282,970 | G8: 8,160,000 | H8: 8,175,897 | I8: 7,210,000 | J8: =SUM(J6:J7) -> 7,051,609 | K8: 6,542,000 | L8: 6,390,988 | M8: 6,160,000 | N8: 6,760,000 | O8: 6,680,000 | P8: 6,590,000 | Q8: =SUM(Q6:Q7) -> 6,590,000
A10: OPERATING EXPENSES:
B11: Insurance expense | D11: 4,294 | E11: 5,500 | F11: 4,243 | G11: 5,000 | H11: 4,029 | I11: 5,000 | J11: 4,035 | K11: 5,000 | L11: 5,100 | M11: 5,200 | N11: 5,200 | O11: 5,300 | P11: 5,300 | Q11: 5,400
B12: Audit fee | D12: 8,000 | E12: 6,000 | F12: 5,500 | G12: 6,500 | H12: 6,500 | I12: 7,000 | J12: 6,500 | K12: 12,000 | L12: 6,600 | M12: 6,700 | N12: 6,700 | O12: 6,800 | P12: 6,800 | Q12: 6,800
B13: Legal fees | D13: 3,500 | E13: 4,500 | F13: 3,500 | G13: 4,000 | H13: 3,500 | I13: 4,000 | J13: 4,000 | K13: 4,000 | L13: 4,000 | M13: 4,100 | N13: 4,100 | O13: 4,200 | P13: 4,200 | Q13: 4,200
B14: Trustee fee | D14: 7,557 | E14: 8,000 | F14: 7,557 | G14: 8,000 | H14: 4,807 | I14: 8,000 | J14: 10,307 | K14: 8,000 | L14: 6,000 | M14: 6,000 | N14: 6,500 | O14: 6,600 | P14: 6,600 | Q14: 6,600
B15: Administrative agency fee | D15: 29,938 | E15: 30,000 | F15: 29,938 | G15: 30,000 | H15: 29,938 | I15: 30,000 | J15: 29,938 | K15: 35,500 | L15: 30,000 | M15: 30,000 | N15: 30,500 | O15: 30,600 | P15: 30,600 | Q15: 30,600
B16: Rating agency fee | D16: 6,238 | E16: 13,250 | F16: 10,175 | G16: 12,000 | H16: 10,175 | I16: 12,000 | J16: 11,326 | K16: 7,000 | L16: 7,000 | M16: 7,000 | N16: 7,100 | O16: 7,200 | P16: 7,200 | Q16: 7,200
B17: General and administrative costs | D17: 41,984 | E17: 48,750 | F17: 48,549 | G17: 55,000 | H17: 56,547 | I17: =+G17+2000 -> 57,000 | J17: 57,000 | K17: 61,000 | L17: 63,000 | M17: 67,000 | N17: 69,000 | O17: 71,000 | P17: 73,000 | Q17: 75,000
B18: OTASC - Bond Payment | D18: 5,212,594 | E18: 5,131,825 | F18: 5,102,294 | G18: 5,016,700 | H18: 4,961,838 | I18: 4,954,806 | J18: 4,820,406 | K18: 420,000 | L18: 1,080,000 | M18: 1,100,000 | N18: 1,320,000 | O18: 1,400,000 | P18: 1,480,000 | Q18: 1,565,000
B19: Interest - Cash (Slow Pay) | D19: =SUM(D11:D18) -> 5,314,105 | E19: =SUM(E11:E18) -> 5,247,825 | F19: =SUM(F11:F18) -> 5,211,756 | G19: =SUM(G11:G18) -> 5,137,200 | H19: 8,278,381 | I19: =SUM(I11:I18) -> 5,077,806 | J19: =SUM(J11:J18) -> 4,943,512 | K19: 5,536,171 | L19: 5,110,318 | M19: 3,962,199 | N19: 3,894,137 | O19: 3,817,637 | P19: 3,736,637 | Q19: 3,650,996
C22: Total operating expenses | D22: =D8-D19 -> 1,990,084 | E22: =E8-E19 -> 1,767,175 | F22: =F8-F19 -> 2,071,214 | G22: =G8-G19 -> 3,022,800 | H22: (102,484) | I22: =I8-I19 -> 2,132,194 | J22: =+J8-J19 -> 2,108,097 | K22: =SUM(K11:K20) -> 6,088,671 | L22: =SUM(L11:L20) -> 6,312,018 | M22: =SUM(M11:M20) -> 5,188,199 | N22: =SUM(N11:N20) -> 5,343,237 | O22: =SUM(O11:O19) -> 5,349,337 | P22: =SUM(P11:P19) -> 5,350,337 | Q22: =SUM(Q11:Q19) -> 5,351,796
A24: INCREASE (DECREASE)IN NET DEFICIT | K24: =+K8-K22 -> 453,329 | L24: 78,970 | M24: 971,801 | N24: 1,416,763 | O24: 1,330,663 | P24: =+P8-P22 -> 1,239,663 | Q24: =+Q8-Q22 -> 1,238,204
A25: FUND BALANCE/NET DEFICIT -
A26: BEGINNING OF YEAR | D26: (123,881,006) | E26: =+D27 ->  | F26: =+D27 ->  | G26: =+F27 ->  | H26: =+F27 ->  | I26: =G27 ->  | J26: (127,909,510) | K26: 6,633,174 | L26: 6,554,074 | M26: 6,619,706 | N26: =+M27 -> 7,591,507 | O26: =+N27 -> 9,008,270 | P26: =+O27 -> 10,338,933 | Q26: =+P27 -> 11,578,596
A27: FUND BALANCE/NET DEFICIT - | D27: =D26+D22+#REF! ->  | E27: =E26+E22 ->  | F27: =+F26+F22 ->  | G27: =G26+G22 ->  | H27: =+H22+H26 ->  | I27: =I26+I22 ->  | J27: =+J22+J26 -> (125,801,413) | K27: =+K24+K26 -> 7,086,503 | L27: 6,633,044 | M27: 7,591,507 | N27: 9,008,270 | O27: 10,338,933 | P27: =SUM(P24:P26) -> 11,578,596 | Q27: =+Q24+Q26 -> 12,816,799
A28: END OF YEAR
F29: =+F18+#REF!+F34 -> 
A32: Bonds payable 2005 - Bal Beginning of year | D32: 93,100,000 | E32: 91,140,000 | F32: =+E32 -> 91,140,000 | G32: =+F32+F34 -> 89,070,000 | H32: =+G32+G34 -> 88,065,000 | I32: 85,975,000 | J32: 85,975,000 | K32: 10,478,166 | L32: =4963972+6244320 -> 11,208,292 | M32: =4963972+7860549 -> 12,824,521 | N32: =+M32+M36 -> 13,718,039 | O32: =+N32+N36 -> 14,673,811 | P32: =+O32+O36 -> 15,696,175 | Q32: =+P32+P36 -> 16,789,770
A33: Bonds payable 2016 - Bal Beginning of year | D33: 28,525,438 | E33: 28,525,438 | F33: 28,525,438 | G33: 28,525,438 | H33: 28,525,438 | I33: 28,525,438 | J33: 28,525,438 | K33: 95,590,000 | L33: =+K33-325000 -> 95,265,000 | M33: 93,080,000 | N33: =+M33+M34 -> 91,980,000 | O33: =+N33+N34 -> 90,660,000 | P33: =+O33+O34 -> 89,260,000 | Q33: =+P33+P34 -> 87,780,000
A34: Assumed Bond Payment - Prin -Slow Pay- | D34: (1,960,000.00) | E34: -945000 | F34: (2,070,000.00) | G34: =-'[1]Debt Service'!C4 -> -1005000 | H34: -3095000 | I34: =-'[1]Debt Service'!C5 -> -1100000 | J34: -2040000 | K34: 325000 | L34: -1080000 | M34: =-M18 -> (1,100,000) | N34: =-N18 -> (1,320,000) | O34: =-O18 -> (1,400,000) | P34: =-P18 -> (1,480,000) | Q34: =-Q18 -> (1,565,000)
A35: Subtotal | D35: =SUM(D32:D34) -> 119,665,438 | E35: 118,720,438 | F35: 117,595,438 | G35: 116,590,438 | H35: =SUM(H32:H34) -> 113,495,438 | I35: 113,400,438 | J35: =SUM(J32:J34) -> 112,460,438 | K35: 106,393,166 | L35: 105,393,292 | M35: =SUM(M32:M34) -> 104,804,521 | N35: =SUM(N32:N34) -> 104,378,039 | O35: =SUM(O32:O34) -> 103,933,811 | P35: =SUM(P32:P34) -> 103,476,175 | Q35: =SUM(Q32:Q34) -> 103,004,770
A36: Add: - Accretion Bal at Year end | D36: 16,390,707 | E36: 19,367,566 | F36: 19,367,566 | G36: 22,536,506 | H36: 22,536,506 | I36: 25,919,799 | J36: 25,919,719 | K36: 730,046 | L36: 780,910 | M36: 893,518 | N36: 955,772 | O36: 1,022,364 | P36: 1,093,595 | Q36: 1,169,789
A37: Total bonds payable and accreted interest-Y/E | D37: =D36+D35 -> 136,056,145 | E37: 138,088,004 | F37: 136,963,004 | G37: 139,126,944 | H37: =SUM(H35:H36) -> 136,031,944 | I37: 139,320,237 | J37: =SUM(J35:J36) -> 138,380,157 | K37: 107,123,212 | L37: 106,174,202 | M37: =SUM(M35:M36) -> 105,698,039 | N37: =SUM(N35:N36) -> 105,333,811 | O37: =+O35+O36 -> 104,956,175 | P37: =SUM(P35:P36) -> 104,569,770 | Q37: =SUM(Q35:Q36) -> 104,174,559

Sheet Details for Budget 2020-2024
A2: 1) Drastically reduce interest due to COVID- back to pre rate upswing and lowered market value increase | L2: Much of the OTASC budget is an educated guess
A3: will use 2017 interest as a basis | D3: 60,000.00 | L3: No clear direction on MSA payments in the future or expense growth
A5: 2) Calc of 2nd credit to PMs - good through 2019 - our
A6: MSA payment should go up then:
A8: Payment in 2019 increased due to credits that will no longer apply to Participating manufacturers
A17: 3) Calc of Interest Expense - Payments - 2016 Debt - Minus Prmium and Deferred Inflow | H17: ONLY FOR GOVERNMENTAL
H18: 2016 A-1 | I18: 2016A-2
B19: Slow Pay Schedule | I19: Premium & | K19: Net
B20: 2016 A-1 | C20: 2016 A-1 | D20: 2016 A-2B | E20: 2016 A-2B | F20: Total | H20: Premium | I20: Def Inflow | K20: Interest
A21: 2020 Interest | B21: 671,765.63 | C21: 822,537.50 | D21: 315,125.00 | E21: 699,500.00 | F21: =SUM(B21:E21) -> 2,508,928.13
B22: 640,828.13 | C22: 822,537.50 | D22: 315,125.00 | E22: 699,500.00 | F22: =SUM(B22:E22) -> 2,477,990.63
F23: =SUM(F21:F22) -> 4,986,918.75 | H23: (266,049.00) | I23: (758,670.27) | K23: =+F23+H23+I23 -> 3,962,199.48
A24: 2021 Interest | B24: 640,828.13 | C24: 822,537.50 | D24: 315,125.00 | E24: 699,500.00 | F24: =SUM(B24:E24) -> 2,477,990.63
B25: 603,703.13 | C25: 822,537.50 | D25: 315,125.00 | E25: 699,500.00 | F25: =SUM(B25:E25) -> 2,440,865.63
F26: =SUM(F24:F25) -> 4,918,856.25 | H26: (266,049.00) | I26: (758,670.27) | K26: =+F26+H26+I26 -> 3,894,136.98
A27: 2022 Interest | B27: 603,703.13 | C27: 822,537.50 | D27: 315,125.00 | E27: 699,500.00 | F27: =SUM(B27:E27) -> 2,440,865.63
B28: 564,328.13 | C28: 822,537.50 | D28: 315,125.00 | E28: 699,500.00 | F28: =SUM(B28:E28) -> 2,401,490.63
F29: =SUM(F27:F28) -> 4,842,356.25 | H29: (266,049.00) | I29: (758,670.27) | K29: =+F29+H29+I29 -> 3,817,636.98
A30: 2023 Interest | B30: 564,328.13 | C30: 822,537.50 | D30: 315,125.00 | E30: 699,500.00 | F30: =SUM(B30:E30) -> 2,401,490.63
B31: 522,703.13 | C31: 822,537.50 | D31: 315,125.00 | E31: 699,500.00 | F31: =SUM(B31:E31) -> 2,359,865.63
F32: =SUM(F30:F31) -> 4,761,356.25 | H32: (266,049.00) | I32: (758,670.27) | K32: =+F32+H32+I32 -> 3,736,636.98
A33: 2024 Interest | B33: 522,703.13 | C33: 822,537.50 | D33: 315,125.00 | E33: 699,500.00 | F33: =SUM(B33:E33) -> 2,359,865.63
B34: 478,687.50 | C34: 822,537.50 | D34: 315,125.00 | E34: 699,500.00 | F34: =SUM(B34:E34) -> 2,315,850.00
F35: =SUM(F33:F34) -> 4,675,715.63 | H35: (266,049.00) | I35: (758,670.27) | K35: =+F35+H35+I35 -> 3,650,996.35
A38: Per BLX- Slow ay Schedule -2019 Audit
A39: 5) Calc of Prin Payments | C39: Estimate
B40: Slow Pay | C40: MSA Payt
A41: 2020 | B41: 1,100,000 | C41: 6,100,000 | D41: Actual 2020 payment just released -6,868,000- no further credits on participating manufacturers
A42: 2021 | B42: 1,320,000 | C42: 6,700,000
A43: 2022 | B43: 1,400,000 | C43: 6,600,000
A44: 2023 | B44: 1,480,000 | C44: 6,500,000
A45: 2024 | B45: 1,565,000 | C45: 6,500,000
A47: 6) Admin costs- allowable for $2k increase each year
A50: 7) Assume increase in expenses by 2020-2024
A51: Insurance - audit - legal fees etc
A53: 8) Accreted Interest- added to 2005 Bonds
A54: accreted interest | E54: 893,518
A55: 2020-12-31 | B55: 13,717,959 | C55: 13,717,959
A56: accreted interest | E56: 955,772
A57: 2021-12-31 | B57: 14,673,732 | C57: 14,673,732
A58: accreted interest | E58: 1,022,364
A59: 2022-12-31 | B59: 15,696,095 | C59: 15,696,095
A60: accreted interest | E60: 1,093,595
A61: 2023-12-31 | B61: 16,789,691 | C61: 16,789,691
A62: accreted interest | E62: 1,169,789
A63: 2024-12-31 | B63: 17,959,480 | C63: 17,959,480

Sheet Budget by yr2019-2023 PARIS
F1: Onondaga Tobacco Asset Securitization Corporation | K1: As Per
A2: BUDGET-OTASC | C2: 2019-2023 | K2: Debt Service
D3: Actual | E3: Budget | F3: Actual | G3: Budget | H3: Actual | I3: Budget | J3: Actual | K3: Budget | L3: Budget | M3: Budget | N3: Budget | O3: Budget | P3: Budget | Q3: Budget
D4: 2012 | E4: 2013 | F4: 2013 | G4: 2014 | H4: 2014 | I4: 2015 | J4: 2015 | K4: 2017 | L4: 2018 | M4: 2019 | N4: 2020 | O4: 2021 | P4: 2022 | Q4: 2023
A5: OPERATING REVENUES:
B6: Tobacco settlement proceeds | D6: 6,821,381 | E6: 6,555,000 | F6: 6,817,145 | G6: 7,700,000 | H6: 7,712,439 | I6: 6,750,000 | J6: 6,600,031 | K6: 6,506,000 | L6: 6,320,988 | M6: 6,350,000 | N6: 6,100,000 | O6: 6,000,000 | P6: 6,000,000 | Q6: 5,900,000
B7: Interest income | D7: 482,808 | E7: 460,000 | F7: 465,825 | G7: =+E7 -> 460,000 | H7: 463,458 | I7: =G7 -> 460,000 | J7: 451,578 | K7: 36,000 | L7: 70,000 | M7: =L7 -> 70,000 | N7: 100,000 | O7: 90,000 | P7: 80,000 | Q7: 90,000
C8: Total operating revenues | D8: =SUM(D6:D7) -> 7,304,189 | E8: =SUM(E6:E7) -> 7,015,000 | F8: =SUM(F6:F7) -> 7,282,970 | G8: 8,160,000 | H8: 8,175,897 | I8: 7,210,000 | J8: =SUM(J6:J7) -> 7,051,609 | K8: 6,542,000 | L8: =SUM(L6:L7) -> 6,390,988 | M8: 6,420,000 | N8: 6,200,000 | O8: 6,090,000 | P8: 6,080,000 | Q8: 5,990,000
A10: OPERATING EXPENSES:
B11: Insurance expense | D11: 4,294 | E11: 5,500 | F11: 4,243 | G11: 5,000 | H11: 4,029 | I11: 5,000 | J11: 4,035 | K11: 5,000 | L11: 5,100 | M11: 5,100 | N11: 5,200 | O11: 5,200 | P11: 5,300 | Q11: 5,300
B12: Audit fee | D12: 8,000 | E12: 6,000 | F12: 5,500 | G12: 6,500 | H12: 6,500 | I12: 7,000 | J12: 6,500 | K12: 12,000 | L12: 6,600 | M12: 6,600 | N12: 6,700 | O12: 6,700 | P12: 6,700 | Q12: 6,700
B13: Legal fees | D13: 3,500 | E13: 4,500 | F13: 3,500 | G13: 4,000 | H13: 3,500 | I13: 4,000 | J13: 4,000 | K13: 4,000 | L13: 4,000 | M13: 4,000 | N13: 4,100 | O13: 4,100 | P13: 4,100 | Q13: 4,100
B14: Trustee fee | D14: 7,557 | E14: 8,000 | F14: 7,557 | G14: 8,000 | H14: 4,807 | I14: 8,000 | J14: 10,307 | K14: 8,000 | L14: 6,000 | M14: 6,000 | N14: 6,000 | O14: 6,500 | P14: 6,500 | Q14: 6,500
B15: Administrative agency fee | D15: 29,938 | E15: 30,000 | F15: 29,938 | G15: 30,000 | H15: 29,938 | I15: 30,000 | J15: 29,938 | K15: 35,500 | L15: 30,000 | M15: 30,000 | N15: 30,000 | O15: 30,500 | P15: 30,500 | Q15: 30,500
B16: Rating agency fee | D16: 6,238 | E16: 13,250 | F16: 10,175 | G16: 12,000 | H16: 10,175 | I16: 12,000 | J16: 11,326 | K16: 7,000 | L16: 7,000 | M16: 7,000 | N16: 7,000 | O16: 7,100 | P16: 7,100 | Q16: 7,100
B17: General and administrative costs | D17: 41,984 | E17: 48,750 | F17: 48,549 | G17: 55,000 | H17: 56,547 | I17: =+G17+2000 -> 57,000 | J17: 57,000 | K17: 61,000 | L17: 63,000 | M17: 65,000 | N17: 67,000 | O17: 69,000 | P17: 71,000 | Q17: 73,000
B18: OTASC - Bond Payment | D18: 5,212,594 | E18: 5,131,825 | F18: 5,102,294 | G18: 5,016,700 | H18: 4,961,838 | I18: 4,954,806 | J18: 4,820,406 | K18: 420,000 | L18: 1,080,000 | M18: 960,000 | N18: 1,245,000 | O18: 1,320,000 | P18: 1,400,000 | Q18: 1,480,000
B19: Interest - Cash (Slow Pay) | D19: =SUM(D11:D18) -> 5,314,105 | E19: =SUM(E11:E18) -> 5,247,825 | F19: =SUM(F11:F18) -> 5,211,756 | G19: =SUM(G11:G18) -> 5,137,200 | H19: 8,278,381 | I19: =SUM(I11:I18) -> 5,077,806 | J19: =SUM(J11:J18) -> 4,943,512 | K19: 5,536,171 | L19: 5,110,318 | M19: 5,053,013 | N19: 4,990,997 | O19: 4,918,856 | P19: 4,842,356 | Q19: =+'Details for Budget 2019-2023'!F35 -> 4,761,356
C22: Total operating expenses | D22: =D8-D19 -> 1,990,084 | E22: =E8-E19 -> 1,767,175 | F22: =F8-F19 -> 2,071,214 | G22: =G8-G19 -> 3,022,800 | H22: (102,484) | I22: =I8-I19 -> 2,132,194 | J22: =+J8-J19 -> 2,108,097 | K22: =SUM(K11:K20) -> 6,088,671 | L22: =SUM(L11:L20) -> 6,312,018 | M22: =SUM(M11:M20) -> 6,136,713 | N22: =SUM(N11:N20) -> 6,361,997 | O22: =SUM(O11:O20) -> 6,367,956 | P22: =SUM(P11:P19) -> 6,373,556 | Q22: =SUM(Q11:Q19) -> 6,374,556
A24: INCREASE (DECREASE)IN NET DEFICIT | K24: =+K8-K22 -> 453,329 | L24: 78,970 | M24: 283,288 | N24: (161,997) | O24: (277,956) | P24: (293,556) | Q24: =+Q8-Q22 -> (384,556)
A25: FUND BALANCE/NET DEFICIT -
A26: BEGINNING OF YEAR | D26: (123,881,006) | E26: =+D27 ->  | F26: =+D27 ->  | G26: =+F27 ->  | H26: =+F27 ->  | I26: =G27 ->  | J26: (127,909,510) | K26: 6,633,174 | L26: 6,554,074 | M26: =L27 -> 6,633,044 | N26: =+M27 -> 6,916,332 | O26: =+N27 -> 6,754,335 | P26: =+O27 -> 6,476,378 | Q26: =+P27 -> 6,182,822
A27: FUND BALANCE/NET DEFICIT - | D27: =D26+D22+#REF! ->  | E27: =E26+E22 ->  | F27: =+F26+F22 ->  | G27: =G26+G22 ->  | H27: =+H22+H26 ->  | I27: =I26+I22 ->  | J27: =+J22+J26 -> (125,801,413) | K27: =+K24+K26 -> 7,086,503 | L27: 6,633,044 | M27: 6,916,332 | N27: 6,754,335 | O27: 6,476,378 | P27: 6,182,822 | Q27: =SUM(Q24:Q26) -> 5,798,266
A28: END OF YEAR
F29: =+F18+#REF!+F34 -> 
A32: Bonds payable 2005 - Bal Beginning of year | D32: 93,100,000 | E32: 91,140,000 | F32: =+E32 -> 91,140,000 | G32: =+F32+F34 -> 89,070,000 | H32: =+G32+G34 -> 88,065,000 | I32: 85,975,000 | J32: 85,975,000 | K32: 10,478,166 | L32: =4963972+6244320 -> 11,208,292 | M32: =+L32+L36 -> 11,989,202 | N32: =+M32+M36 -> 12,824,521 | O32: =+N32+N36 -> 13,718,039 | P32: =+O32+O36 -> 14,673,812 | Q32: =+P32+P36 -> 15,696,176
A33: Bonds payable 2016 - Bal Beginning of year | D33: 28,525,438 | E33: 28,525,438 | F33: 28,525,438 | G33: 28,525,438 | H33: 28,525,438 | I33: 28,525,438 | J33: 28,525,438 | K33: 95,590,000 | L33: =+K33-325000 -> 95,265,000 | M33: =+L33+L34 -> 94,185,000 | N33: =+M33+M34 -> 93,225,000 | O33: =+N33+N34 -> 91,980,000 | P33: =+O33+O34 -> 90,660,000 | Q33: =+P33+P34 -> 89,260,000
A34: Assumed Bond Payment - Prin -Slow Pay- | D34: (1,960,000.00) | E34: -945000 | F34: (2,070,000.00) | G34: =-'[1]Debt Service'!C4 -> -1005000 | H34: -3095000 | I34: =-'[1]Debt Service'!C5 -> -1100000 | J34: -2040000 | K34: 325000 | L34: -1080000 | M34: =-M18 -> (960,000) | N34: =-N18 -> (1,245,000) | O34: =-O18 -> (1,320,000) | P34: =-P18 -> (1,400,000) | Q34: =-Q18 -> (1,480,000)
A35: Subtotal | D35: =SUM(D32:D34) -> 119,665,438 | E35: 118,720,438 | F35: 117,595,438 | G35: 116,590,438 | H35: =SUM(H32:H34) -> 113,495,438 | I35: 113,400,438 | J35: =SUM(J32:J34) -> 112,460,438 | K35: 106,393,166 | L35: 105,393,292 | M35: 105,214,202 | N35: =SUM(N32:N34) -> 104,804,521 | O35: =SUM(O32:O34) -> 104,378,039 | P35: =SUM(P32:P34) -> 103,933,812 | Q35: =SUM(Q32:Q34) -> 103,476,176
A36: Add: - Accretion Bal at Year end | D36: 16,390,707 | E36: 19,367,566 | F36: 19,367,566 | G36: 22,536,506 | H36: 22,536,506 | I36: 25,919,799 | J36: 25,919,719 | K36: 730,046 | L36: 780,910 | M36: 835,319 | N36: 893,518 | O36: 955,772 | P36: 1,022,364 | Q36: 1,093,595
A37: Total bonds payable and accreted interest-Y/E | D37: =D36+D35 -> 136,056,145 | E37: 138,088,004 | F37: 136,963,004 | G37: 139,126,944 | H37: =SUM(H35:H36) -> 136,031,944 | I37: 139,320,237 | J37: =SUM(J35:J36) -> 138,380,157 | K37: 107,123,212 | L37: 106,174,202 | M37: 106,049,521 | N37: =SUM(N35:N36) -> 105,698,039 | O37: =SUM(O35:O36) -> 105,333,812 | P37: =+P35+P36 -> 104,956,176 | Q37: =SUM(Q35:Q36) -> 104,569,771

Sheet Details for Budget 2019-2023
A2: 1) Base interest income on 2018-2019- estimate- $100,000- rates are slowly declining now - Fed cutting rates | L2: Much of the OTASC budget is an educated guess
A3: Anticipation of recession in next few years - reduce to $90K | L3: No clear direction on MSA payments in the future or expense growth
A5: 2) Calc of 2nd credit to PMs - good through 2019 - our
A6: MSA payment should go up then:
A8: Per Email from Dana B - Credit in 2017 | F8: 87,643,971.00
B9: OTASC portion of MSA Payt | F9: 0.972%
B10: Otasc Portion of credit | F10: =+F8*F9 -> 851,899.40
B12: Will use a bump of $700K to be conservative
A17: 3) Calc of Interest Expense - Payments - 2016 Debt - Minus Prmium and Deferred Inflow | H17: ONLY FOR GOVERNMENTAL
H18: 2016 A-1 | I18: 2016A-2
B19: Slow Pay Schedule | I19: Premium & | K19: Net
B20: 2016 A-1 | C20: 2016 A-1 | D20: 2016 A-2B | E20: 2016 A-2B | F20: Total | H20: Premium | I20: Def Inflow | K20: Interest
A21: 2019 Interest | B21: 699,890.63 | C21: 822,537.50 | D21: 315,125.00 | E21: 699,500.00 | F21: =SUM(B21:E21) -> 2,537,053.13
B22: 675,843.75 | C22: 822,537.50 | D22: 315,125.00 | E22: 699,500.00 | F22: =SUM(B22:E22) -> 2,513,006.25
F23: =SUM(F21:F22) -> 5,050,059.38 | H23: (266,049.00) | I23: (758,670.27) | K23: =+F23+H23+I23 -> 4,025,340.10
A24: 2020 Interest | B24: 675,843.75 | C24: 822,537.50 | D24: 315,125.00 | E24: 699,500.00 | F24: =SUM(B24:E24) -> 2,513,006.25
B25: 640,828.13 | C25: 822,537.50 | D25: 315,125.00 | E25: 699,500.00 | F25: =SUM(B25:E25) -> 2,477,990.63
F26: =SUM(F24:F25) -> 4,990,996.88 | H26: (266,049.00) | I26: (758,670.27) | K26: =+F26+H26+I26 -> 3,966,277.60
A27: 2021 Interest | B27: 640,828.13 | C27: 822,537.50 | D27: 315,125.00 | E27: 699,500.00 | F27: =SUM(B27:E27) -> 2,477,990.63
B28: 603,703.13 | C28: 822,537.50 | D28: 315,125.00 | E28: 699,500.00 | F28: =SUM(B28:E28) -> 2,440,865.63
F29: =SUM(F27:F28) -> 4,918,856.25 | H29: (266,049.00) | I29: (758,670.27) | K29: =+F29+H29+I29 -> 3,894,136.98
A30: 2022 Interest | B30: 603,703.13 | C30: 822,537.50 | D30: 315,125.00 | E30: 699,500.00 | F30: =SUM(B30:E30) -> 2,440,865.63
B31: 564,328.13 | C31: 822,537.50 | D31: 315,125.00 | E31: 699,500.00 | F31: =SUM(B31:E31) -> 2,401,490.63
F32: =SUM(F30:F31) -> 4,842,356.25 | H32: (266,049.00) | I32: (758,670.27) | K32: =+F32+H32+I32 -> 3,817,636.98
A33: 2023 Interest | B33: 564,328.13 | C33: 822,537.50 | D33: 315,125.00 | E33: 699,500.00 | F33: =SUM(B33:E33) -> 2,401,490.63
B34: 522,703.13 | C34: 822,537.50 | D34: 315,125.00 | E34: 699,500.00 | F34: =SUM(B34:E34) -> 2,359,865.63
F35: =SUM(F33:F34) -> 4,761,356.25 | H35: (266,049.00) | I35: (758,670.27) | K35: =+F35+H35+I35 -> 3,736,636.98
A38: Per BLX- Slow ay Schedule -2018 Audit
A39: 5) Calc of Prin Payments | C39: Estimate
B40: Slow Pay | C40: MSA Payt
A41: 2019 | B41: 960,000 | C41: 6,350,000 | D41: Actual for 2019 was 5,989,000- should be slightly higher due to no other MS credits- however-tobacco co. are investing more into vaping- marijauna content
A42: 2020 | B42: 1,245,000 | C42: 6,100,000
A43: 2021 | B43: 1,320,000 | C43: 6,000,000
A44: 2022 | B44: 1,400,000 | C44: 6,000,000
A45: 2023 | B45: 1,480,000 | C45: 5,900,000
A47: 6) Admin costs- allowable for $2k increase each year
A50: 7) Assume increase in expenses by 2020-2023
A51: Insurance - audit - legal fees etc
A53: 8) Accreted Interest- added to 2005 Bonds
A54: 2019-12-31 | B54: 12,824,441 | C54: 12,824,441
A55: accreted interest | E55: 893,518
A56: 2020-12-31 | B56: 13,717,959 | C56: 13,717,959
A57: accreted interest | E57: 955,772
A58: 2021-12-31 | B58: 14,673,732 | C58: 14,673,732
A59: accreted interest | E59: 1,022,364
A60: 2022-12-31 | B60: 15,696,095 | C60: 15,696,095
A61: accreted interest | E61: 1,093,595
A62: 2023-12-31 | B62: 16,789,691 | C62: 16,789,691

Sheet Details for Budget
A2: 1) Base interest income on 2017- estimate- $70,000 | L2: Emails - Justin Gagnon- BLX on Future Payments/Expenses
L4: Hi Lori,
A5: 2) Calc of 2nd credit to PMs - good through 2019 - our
A6: MSA payment should go up then: | L6: Based on the most recent projection of TSRs available ($6,314,245), the amount of principal to be paid on June 1 is $1,175,000.
L7: This number is just an estimate at this time. I am not aware of any fee increases for operating expenses (trustee, admin, rating agency).
A8: Per Email from Dana B - Credit in 2017 | F8: 87,643,971.00 | L8: I will use Slow pay of 1,080,000- and future years
B9: OTASC portion of MSA Payt | F9: 0.972%
B10: Otasc Portion of credit | F10: =+F8*F9 -> 851,899.40
L11: It does seem high when looking at the principal paid last year, but not when you factor in the interest
B12: Will use a bump of $700K to be conservative | L12: expense. The 2016 A-2B bonds had a long first interest payment date of 6/1/17 (rather than on 12/1/16 like
L13: the 2016 A-1 bonds), resulting in a decrease of interest expense in 2018 of $430K. If you add the $477K in
A14: 3) 2017 Prin Payt - NYCTT VI | F14: 325,000 | L14: additional TSRs for 2018, last year’s principal payment of $325K, and the $430K or reduced interest cost, you arrive in the neighborhood of the $1,175K of principal.
A15: 2018- Estimate will be similar as MSA will be similar to 2017 | F15: 350,000
A17: 4) Calc of Interest Expense - Payments - 2016 Debt - Minus Prmium and Deferred Inflow | H17: ONLY FOR GOVERNMENTAL
H18: 2016 A-1 | I18: 2016A-2
B19: Slow Pay Schedule | I19: Premium & | K19: Net
B20: 2016 A-1 | C20: 2016 A-1 | D20: 2016 A-2B | E20: 2016 A-2B | F20: Total | H20: Premium | I20: Def Inflow | K20: Interest
A21: 2018 Interest | B21: 733,218.75 | C21: 822,537.50 | D21: 315,125.00 | E21: 699,500.00 | F21: =SUM(B21:E21) -> 2,570,381.25 | M21: =6320000-5837000 -> 483000
B22: 702,843.75 | C22: 822,537.50 | D22: 315,125.00 | E22: 699,500.00 | F22: =SUM(B22:E22) -> 2,540,006.25
F23: =SUM(F21:F22) -> 5,110,387.50 | H23: (266,049.00) | I23: (758,670.27) | K23: =+F23+H23+I23 -> 4,085,668.23
A24: 2019 Interest | B24: 702,843.75 | C24: 822,537.50 | D24: 315,125.00 | E24: 699,500.00 | F24: =SUM(B24:E24) -> 2,540,006.25
B25: 675,843.75 | C25: 822,537.50 | D25: 315,125.00 | E25: 699,500.00 | F25: =SUM(B25:E25) -> 2,513,006.25
F26: =SUM(F24:F25) -> 5,053,012.50 | H26: (266,049.00) | I26: (758,670.27) | K26: =+F26+H26+I26 -> 4,028,293.23
A27: 2020 Interest | B27: 675,843.75 | C27: 822,537.50 | D27: 315,125.00 | E27: 699,500.00 | F27: =SUM(B27:E27) -> 2,513,006.25
B28: 640,828.13 | C28: 822,537.50 | D28: 315,125.00 | E28: 699,500.00 | F28: =SUM(B28:E28) -> 2,477,990.63
F29: =SUM(F27:F28) -> 4,990,996.88 | H29: (266,049.00) | I29: (758,670.27) | K29: =+F29+H29+I29 -> 3,966,277.60
A30: 2021 Interest | B30: 640,828.13 | C30: 822,537.50 | D30: 315,125.00 | E30: 699,500.00 | F30: =SUM(B30:E30) -> 2,477,990.63
B31: 603,703.13 | C31: 822,537.50 | D31: 315,125.00 | E31: 699,500.00 | F31: =SUM(B31:E31) -> 2,440,865.63
F32: =SUM(F30:F31) -> 4,918,856.25 | H32: (266,049.00) | I32: (758,670.27) | K32: =+F32+H32+I32 -> 3,894,136.98
A33: 2022 Interest | B33: 603,703.13 | C33: 822,537.50 | D33: 315,125.00 | E33: 699,500.00 | F33: =SUM(B33:E33) -> 2,440,865.63
B34: 564,328.13 | C34: 822,537.50 | D34: 315,125.00 | E34: 699,500.00 | F34: =SUM(B34:E34) -> 2,401,490.63
F35: =SUM(F33:F34) -> 4,842,356.25 | H35: (266,049.00) | I35: (758,670.27)
A37: 5) Calc of Prin Payments | C37: Estimate
B38: Slow Pay | C38: MSA Payt
A39: 2017 | B39: 420,000 | C39: 420,000 | D39: 325,000 | E39: Due to lower MSA pays - 2017 to 2019
A40: 2018 | B40: 985,000 | C40: 350,000 | E40: will be lower - see above explanation
A41: 2019 | B41: 960,000 | C41: 400,000
A42: 2020 | B42: 1,245,000 | C42: 1,400,000
A43: 2021 | B43: 1,320,000 | C43: 1,450,000
A45: 6) Admin costs- allowable for $2k increase each year
A48: 7) Assume increase in expenses by 2020-2022
A49: Insurance - audit - legal fees etc
